bitfinex/quotes_ETHUSD_20250406
["timestamp","ask_amount","ask_price","bid_price","bid_amount"]
[1743963364817,9.65968543,1662.8,1661.4,1.5488]
[1743963364818,0.55,1662.6,1662.0,4.21164]
[1743963365022,3.55,1662.4,1661.4,1.5488]
[1743963365222,0.55,1662.3,1661.8,4.21212]
[1743963365547,0.55,1662.3,1661.4,5.76191]
[1743963365548,8.695,1662.2,1662.1,4.21153]
[1743963365753,14.695,1662.7,1662.6,4.21027]
[1743963366244,6.0,1662.7,1662.6,4.21027]
[1743963367361,8.694,1663.2,1662.9,4.20951]
[1743963367523,6.0,1663.4,1663.3,4.2085]
[1743963367724,6.0,1663.6,1662.8,4.20976]
[1743963367937,14.694,1663.6,1663.2,4.20856]
[1743963368259,14.694,1663.6,1663.5,4.20799]
[1743963368562,14.694,1664.1,1664.0,4.20673]
[1743963368726,6.0,1664.1,1663.8,4.20703]
[1743963368921,58.012,1664.3,1663.5,4.20795]
[1743963369169,43.318,1664.3,1664.2,4.20622]
[1743963369329,43.318,1664.3,1663.4,5.7569]
[1743963369528,43.318,1664.3,1664.0,4.20655]
[1743963369761,43.318,1664.3,1664.1,4.20627]
[1743963369926,43.318,1664.3,1664.2,4.20622]
[1743963370277,43.318,1664.3,1664.1,4.20644]
[1743963370455,43.318,1664.3,1664.2,4.20622]
[1743963370657,8.694,1664.7,1664.3,4.2058]
[1743963370824,1.4694,1664.7,1664.3,8.4116]
[1743963371028,6.0,1664.8,1664.3,8.4116]
[1743963371253,6.0,1664.8,1664.4,4.20557]
[1743963371452,14.691,1664.8,1664.5,4.20527]
[1743963371660,14.691,1664.8,1664.3,4.20595]
[1743963371873,1.4691,1664.7,1663.6,4.2075]
[1743963372045,4.4691,1664.7,1664.1,4.20646]
[1743963372243,0.42745281,1664.6,1664.0,1.6347]
[1743963372570,8.691,1664.8,1664.6,4.2052]
[1743963372790,43.306,1664.9,1664.3,4.20581]
[1743963372969,43.306,1664.9,1664.7,4.20495]
[1743963372970,51.994,1664.9,1664.7,4.20495]
[1743963373178,51.994,1664.9,1664.7,4.20476]
[1743963373179,43.306,1664.9,1664.7,4.20476]
[1743963373477,43.306,1664.9,1664.8,4.2047]
[1743963373771,8.688,1665.3,1664.9,4.2043]
[1743963374079,51.981,1665.5,1664.7,1.6347]
[1743963374389,51.981,1665.5,1665.0,4.20409]
[1743963374542,51.981,1665.5,1664.7,1.6347]
[1743963374543,51.981,1665.5,1665.2,4.20366]
[1743963374873,43.293,1665.5,1665.4,4.20319]
[1743963375228,43.293,1665.5,1665.1,4.20378]
[1743963375554,43.293,1665.5,1665.1,4.20385]
[1743963375879,43.278,1666.1,1665.3,4.20336]
[1743963376056,8.684,1666.0,1665.4,5.83789]
[1743963376369,8.684,1666.0,1665.7,4.20232]
[1743963376584,8.684,1666.0,1665.4,1.6347]
[1743963376585,8.684,1666.0,1665.5,8.40568]
[1743963376792,8.684,1666.0,1665.5,4.2028]
[1743963377098,8.684,1666.0,1665.1,4.20371]
[1743963377099,8.80009797,1665.9,1665.1,4.20371]
[1743963377386,3.0,1665.8,1665.1,4.20381]
[1743963377568,3.0,1665.8,1664.9,1.6347]
[1743963377569,9.0,1665.8,1664.9,1.6347]
[1743963377751,1.01611791,1665.7,1664.9,4.20432]
[1743963377944,1.01611791,1665.7,1665.2,4.20368]
[1743963378148,0.11611791,1665.7,1665.3,4.20344]
[1743963378447,6.11611791,1665.7,1665.0,8.40838]
[1743963378651,3.0,1665.6,1664.6,4.20521]
[1743963378878,0.55,1665.5,1664.6,4.20509]
[1743963379077,0.55,1665.5,1664.8,4.20457]
[1743963379255,0.11526222,1665.4,1665.2,4.20358]
[1743963379459,0.11526222,1665.4,1665.0,4.20408]
[1743963379688,3.0,1665.6,1664.7,4.20492]
[1743963379851,0.11416068,1665.3,1665.2,4.20349]
[1743963380044,14.681,1665.7,1665.3,4.20327]
[1743963380259,16.1804115,1665.7,1665.1,1.592]
[1743963380464,43.268,1665.6,1665.0,8.40819]
[1743963380763,3.55,1665.5,1664.7,4.20492]
[1743963380958,9.55,1665.5,1664.5,4.20545]
[1743963381268,3.55,1665.3,1663.8,4.20719]
[1743963381470,3.0,1664.9,1664.4,4.20553]
[1743963381679,6.0,1664.8,1663.6,1.592]
[1743963381856,57.942,1664.7,1664.2,4.2061]
[1743963382050,57.942,1664.7,1664.3,4.20597]
[1743963382051,49.261,1664.7,1664.3,4.20597]
[1743963382276,57.94,1664.7,1664.3,4.20597]
[1743963382490,57.94,1664.7,1664.3,4.20579]
[1743963382691,57.94,1664.7,1664.0,4.20654]
[1743963382886,9.55,1664.6,1663.6,1.592]
[1743963383061,3.55,1664.4,1663.7,4.20747]
[1743963383261,6.0,1664.3,1663.7,4.20747]
[1743963383462,8.679,1664.2,1663.5,4.20782]
[1743963383787,8.679,1664.2,1663.6,4.20773]
[1743963384108,0.55,1664.0,1663.0,1.6156]
[1743963384277,3.55,1663.8,1663.0,1.6156]
[1743963384464,3.55,1663.6,1662.8,4.20976]
[1743963384663,0.55,1663.4,1662.8,4.20976]
[1743963384870,0.55,1663.4,1662.7,0.06014004]
[1743963385068,6.55,1663.4,1662.6,4.21009]
[1743963385366,0.55,1663.2,1662.0,4.21156]
[1743963385615,0.55,1662.9,1662.1,4.21153]
[1743963385808,43.266,1662.8,1662.5,4.21038]
[1743963386105,3.0,1662.7,1662.2,4.21108]
[1743963386312,8.679,1662.6,1662.0,9.005956]
[1743963386600,15.8469,1662.6,1662.0,4.21179]
[1743963386800,15.8469,1662.6,1662.2,4.2111]
[1743963386981,14.679,1662.6,1662.3,4.21102]
[1743963387177,43.266,1662.8,1662.4,4.21053]
[1743963387379,43.266,1662.8,1662.6,4.21014]
[1743963387609,43.266,1662.8,1662.0,4.21161]
[1743963387834,51.964,1663.6,1662.3,7.92345237]
[1743963388028,51.964,1663.6,1663.5,4.20799]
[1743963388306,43.282,1663.6,1663.5,4.20799]
[1743963388804,43.282,1663.6,1663.4,4.20817]
[1743963388996,43.282,1663.6,1663.5,4.20799]
[1743963389475,6.0,1664.6,1664.5,4.20546]
[1743963389674,43.282,1664.7,1663.8,0.06008653]
[1743963389991,4.3282,1664.6,1663.6,4.20773]
[1743963390191,10.3282,1664.6,1664.0,4.2066]
[1743963390371,8.681,1664.5,1664.2,4.20602]
[1743963390571,9.652745,1664.5,1663.4,1.6156]
[1743963390772,3.0,1664.3,1663.6,4.2076]
[1743963390972,0.55,1664.2,1663.7,4.20747]
[1743963391272,0.55,1664.3,1663.2,4.20875]
[1743963391504,3.55,1664.3,1663.6,4.20759]
[1743963391720,3.0,1664.1,1663.3,4.2085]
[1743963391921,6.0,1664.0,1663.9,4.20698]
[1743963392088,8.68,1664.1,1664.0,4.20654]
[1743963392289,8.68,1664.1,1663.9,4.20698]
[1743963392526,8.68,1664.1,1663.9,4.20686]
[1743963392728,8.68,1664.1,1664.0,4.20673]
[1743963393023,9.548,1664.1,1663.7,4.20736]
[1743963393227,6.0,1664.0,1663.8,4.20708]
[1743963393432,6.0,1664.1,1663.9,4.20698]
[1743963393729,8.68,1664.2,1663.6,1.5286]
[1743963393927,8.68,1664.2,1664.0,4.20651]
[1743963394238,9.0,1664.1,1663.2,1.5286]
[1743963394389,0.55,1663.8,1663.2,8.4172]
[1743963394588,57.957,1663.7,1663.2,4.20854]
[1743963394829,57.957,1663.7,1663.1,4.209]
[1743963394830,9.55,1663.6,1663.1,4.20899]
[1743963395034,9.55,1663.6,1662.7,4.20983]
[1743963395035,6.0,1663.5,1663.0,4.20924]
[1743963395186,0.6,1663.4,1663.0,4.20914]
[1743963395387,6.0,1663.3,1662.9,4.20948]
[1743963395635,8.679,1663.2,1662.7,4.21001]
[1743963395928,6.0,1663.2,1663.1,4.209]
[1743963396115,14.679,1663.2,1663.1,4.209]
[1743963396326,8.679,1663.2,1663.1,4.209]
[1743963396491,8.679,1663.3,1663.1,4.20886]
[1743963396713,6.0,1663.6,1663.0,4.20926]
[1743963396905,14.68,1663.6,1663.5,4.20799]
[1743963397124,8.68,1663.6,1663.5,4.20799]
[1743963397324,8.68,1663.6,1663.1,4.209]
[1743963397325,6.0,1663.9,1663.8,4.20723]
[1743963397633,57.966,1664.0,1663.9,4.20698]
[1743963397835,43.286,1664.0,1663.9,4.20698]
[1743963398156,11.94082788,1664.8,1664.3,4.20597]
[1743963398320,8.68,1664.7,1664.6,4.20521]
[1743963398851,11.94082788,1664.8,1664.6,4.20521]
[1743963398852,7.88e-06,1664.8,1664.7,4.20496]
[1743963400451,2.38334691,1664.9,1664.8,4.20463]
[1743963400859,2.38334691,1664.9,1664.0,1.5784]
[1743963400860,8.38334691,1664.9,1664.0,1.5784]
[1743963401058,0.55,1664.6,1663.9,4.2068]
[1743963401356,0.55,1664.6,1663.1,7.92345237]
[1743963401357,0.55,1664.3,1663.3,4.20846]
[1743963401562,3.55,1664.1,1663.4,4.20812]
[1743963401744,3.55,1663.9,1663.3,4.20847]
[1743963401930,0.55,1663.6,1662.8,4.20962]
[1743963402257,3.55,1663.4,1662.5,4.21052]
[1743963402425,9.55,1663.4,1662.9,4.20932]
[1743963402624,9.55,1663.4,1662.6,4.21027]
[1743963402625,6.0,1663.4,1662.6,4.21027]
[1743963402891,6.0,1663.4,1663.3,4.2085]
[1743963403041,43.70254392,1663.5,1663.3,4.2085]
[1743963403042,49.275,1663.5,1663.4,4.20824]
[1743963403230,43.275,1663.5,1663.4,4.20824]
[1743963403438,43.278,1664.1,1663.9,4.20692]
[1743963403960,43.278,1664.1,1664.0,4.20673]
[1743963404125,43.278,1664.1,1663.9,4.20677]
[1743963404456,43.278,1664.1,1663.3,4.629222]
[1743963404660,4.3278,1664.0,1663.7,4.20735]
[1743963404957,0.55,1663.9,1663.4,4.20801]
[1743963405156,43.278,1664.1,1663.2,0.06011605]
[1743963405333,43.278,1664.1,1663.0,5.87063]
[1743963405334,43.278,1664.1,1663.9,8.41384]
[1743963405523,43.278,1664.1,1663.9,4.20692]
[1743963405720,51.954,1664.1,1663.9,4.20687]
[1743963405950,0.55,1664.0,1663.5,4.20785]
[1743963406159,6.55,1664.0,1663.6,4.2076]
[1743963406457,6.0,1664.0,1663.6,4.2077]
[1743963406655,6.0,1664.0,1663.3,4.20847]
[1743963406857,51.954,1664.1,1663.9,4.20698]
[1743963407162,57.954,1664.1,1663.6,4.20773]
[1743963407320,57.954,1664.1,1663.4,4.20822]
[1743963407661,57.954,1664.1,1663.8,4.20719]
[1743963407957,57.954,1664.1,1663.1,4.209]
[1743963408122,57.954,1664.1,1663.4,4.20803]
[1743963408322,3.0,1664.0,1663.4,4.20803]
[1743963408557,0.55,1663.8,1663.3,4.20834]
[1743963408766,6.55,1663.8,1663.2,4.20874]
[1743963408915,0.55,1663.6,1662.7,4.20986]
[1743963409118,0.55,1663.3,1662.8,4.20975]
[1743963409341,49.277,1663.2,1662.8,4.20957]
[1743963409528,49.277,1663.2,1663.1,4.209]
[1743963409918,49.277,1663.2,1663.0,4.20917]
[1743963409919,8.675,1663.5,1663.4,4.20824]
[1743963410382,49.277,1663.8,1663.5,4.20788]
[1743963410525,9.10345656,1663.7,1663.5,8.41576]
[1743963410724,9.10345656,1663.7,1663.2,4.20856]
[1743963411022,3.97845656,1663.6,1662.7,4.21001]
[1743963411339,0.55,1663.5,1663.0,4.2091]
[1743963411539,3.55,1663.3,1662.6,1.6614]
[1743963411846,9.0,1663.3,1662.9,4.2095]
[1743963412158,0.42845656,1663.2,1663.1,4.209]
[1743963412358,6.0,1663.3,1663.2,4.20875]
[1743963413255,6.0,1663.3,1662.8,4.20976]
[1743963413420,0.55,1663.1,1662.3,1.6093]
[1743963413619,8.675,1663.0,1662.8,4.20955]
[1743963413821,43.281,1662.9,1662.4,4.21065]
[1743963414064,49.281,1662.9,1662.7,4.20992]
[1743963414280,49.20140416,1662.9,1662.7,4.20991]
[1743963414583,3.0,1663.4,1662.8,4.20976]
[1743963414754,3.55,1663.2,1662.7,4.20999]
[1743963414939,0.355,1663.1,1662.7,4.20999]
[1743963415237,9.1046148,1663.0,1662.7,4.20999]
[1743963415437,9.1046148,1663.0,1662.6,4.21026]
[1743963415438,8.676,1663.0,1662.8,4.20963]
[1743963415661,8.676,1663.0,1662.7,4.20999]
[1743963415988,8.676,1663.0,1662.4,1.6093]
[1743963415989,8.676,1663.0,1662.8,4.20962]
[1743963416149,8.676,1663.0,1662.9,4.20951]
[1743963416486,6.0,1663.3,1663.0,4.20921]
[1743963416794,9.1036845,1663.2,1663.1,4.2089]
[1743963417077,5.96991783,1663.4,1663.3,4.2085]
[1743963417290,5.96991783,1663.4,1662.9,4.20944]
[1743963417291,5.96991783,1663.4,1662.4,4.2107]
[1743963417438,11.96991783,1663.4,1662.8,1.5489]
[1743963417643,3.0,1663.3,1662.6,4.21024]
[1743963417844,8.675,1663.2,1662.9,4.20933]
[1743963418181,8.675,1663.2,1662.5,4.21052]
[1743963418364,5.96991783,1663.4,1663.3,4.2085]
[1743963418569,5.96991783,1663.4,1662.5,4.21052]
[1743963418746,5.96991783,1663.4,1662.4,5.7596]
[1743963418747,5.96991783,1663.1,1662.9,4.2094]
[1743963418948,5.96991783,1663.1,1663.0,4.20926]
[1743963419282,5.96991783,1663.1,1663.0,5.75816]
[1743963419442,7.83e-06,1663.1,1663.0,5.75816]
[1743963420183,7.83e-06,1663.1,1663.0,4.20926]
[1743963420395,7.83e-06,1663.1,1662.8,4.20975]
[1743963420583,7.83e-06,1663.1,1663.0,4.20926]
[1743963421372,7.83e-06,1663.1,1663.0,5.1112595]
[1743963421558,7.83e-06,1663.1,1663.0,5.051136]
[1743963421765,7.83e-06,1663.1,1663.0,6.600036]
[1743963422442,7.83e-06,1663.1,1663.0,4.20926]
[1743963422644,7.83e-06,1663.1,1662.9,4.20948]
[1743963422876,14.674,1663.4,1663.2,4.2086]
[1743963423045,14.674,1663.4,1662.8,4.20963]
[1743963423246,3.55,1663.3,1662.7,4.20995]
[1743963423483,5.0174,1663.3,1662.7,4.20995]
[1743963423790,0.4285442,1663.2,1662.9,4.20928]
[1743963423986,0.4285442,1663.2,1662.9,4.20936]
[1743963424292,6.02746295,1663.0,1662.1,1.5489]
[1743963424445,18.223,1662.9,1662.2,4.21112]
[1743963424645,0.42822109,1662.8,1661.9,4.21204]
[1743963424844,0.42822109,1662.8,1662.3,4.21079]
[1743963425047,3.42822109,1662.8,1662.4,4.21068]
[1743963425289,6.42822109,1662.7,1662.3,4.21103]
[1743963425583,49.291,1662.6,1662.1,4.21131]
[1743963425748,49.291,1662.6,1662.2,4.21112]
[1743963425943,6.55,1662.5,1662.0,4.21178]
[1743963426191,8.673,1662.4,1661.9,4.21204]
[1743963426375,8.673,1662.4,1662.2,4.21109]
[1743963426751,8.673,1662.4,1662.2,4.2112]
[1743963426951,8.673,1662.4,1662.2,4.21109]
[1743963427153,8.673,1662.4,1662.1,4.21144]
[1743963427371,8.673,1662.4,1662.0,4.21179]
[1743963427577,8.673,1662.4,1662.3,4.21103]
[1743963428281,6.0,1662.5,1662.4,4.21077]
[1743963428482,14.674,1663.1,1662.6,4.21025]
[1743963428780,14.674,1663.1,1662.9,4.20929]
[1743963428982,14.674,1663.1,1663.0,4.20926]
[1743963429144,14.674,1663.1,1662.9,8.4187]
[1743963429343,3.71340332,1662.5,1662.4,2.39108]
[1743963429584,8.674,1663.1,1662.9,4.20941]
[1743963429775,8.674,1663.1,1663.0,4.20926]
[1743963430350,43.301,1663.2,1663.1,4.209]
[1743963431267,49.301,1663.2,1662.8,4.20964]
[1743963431563,6.0,1663.1,1663.0,4.20926]
[1743963432691,5.98979851,1663.4,1663.3,4.2085]
[1743963433089,11.98979851,1663.4,1663.0,4.209]
[1743963433254,0.59897985,1663.3,1662.6,4.21027]
[1743963433459,14.672,1663.2,1662.8,4.20961]
[1743963433667,14.672,1663.2,1662.9,4.20928]
[1743963434090,0.42919693,1663.1,1662.9,4.20928]
[1743963434294,0.42919693,1663.1,1663.0,4.20926]
[1743963434477,3.55,1663.0,1662.4,4.21066]
[1743963434798,3.0,1662.8,1662.2,4.21116]
[1743963434972,3.0,1662.8,1662.2,8.42234]
[1743963434973,8.671,1662.7,1662.2,8.42234]
[1743963435302,8.671,1662.7,1662.0,1.5403]
[1743963435303,6.0,1662.6,1662.1,4.21153]
[1743963435595,3.42919693,1662.5,1661.6,1.5403]
[1743963435756,8.671,1662.4,1662.1,4.21131]
[1743963435953,15.10019693,1662.4,1662.3,4.21103]
[1743963436157,6.42919693,1662.4,1662.3,4.21103]
[1743963436458,6.0,1662.8,1662.7,4.21001]
[1743963436659,57.973,1662.9,1662.7,4.21001]
[1743963436887,0.4296319,1662.8,1662.7,4.20997]
[1743963437092,0.4296319,1662.8,1662.5,4.21051]
[1743963437275,0.4296319,1662.8,1662.4,4.21076]
[1743963437591,6.4296319,1662.7,1662.2,4.21113]
[1743963437760,0.4296319,1662.6,1662.1,8.4229]
[1743963437958,0.4296319,1662.6,1662.1,4.21138]
[1743963438281,0.55,1662.4,1661.9,4.21187]
[1743963438465,0.55,1662.4,1661.9,4.21185]
[1743963438466,14.671,1662.3,1661.9,4.21185]
[1743963438667,0.4296319,1662.2,1662.0,0.06017098]
[1743963438989,6.0,1662.6,1662.5,4.21052]
[1743963439212,20.66079851,1662.7,1662.2,4.21111]
[1743963439355,20.66079851,1662.7,1662.4,4.21073]
[1743963439560,0.42983463,1662.6,1662.5,4.21039]
[1743963439789,6.42983463,1662.6,1662.5,4.21039]
[1743963439989,6.0,1662.6,1662.5,4.21039]
[1743963440188,6.0,1662.6,1662.3,4.21091]
[1743963440391,6.0,1662.6,1662.2,4.21128]
[1743963440597,11.98979851,1662.7,1662.6,4.21027]
[1743963441683,12.43918848,1662.7,1662.1,1.5098]
[1743963441995,11.98589302,1662.6,1662.2,4.21128]
[1743963442200,6.0,1662.2,1662.0,4.21157]
[1743963442501,6.0,1662.4,1662.1,4.21153]
[1743963442881,6.0,1662.4,1661.6,4.21258]
[1743963443214,3.55,1662.3,1661.6,4.21256]
[1743963443499,14.67,1662.2,1661.4,4.21331]
[1743963443664,14.67,1662.2,1661.9,4.21179]
[1743963443860,14.67,1662.2,1662.0,4.21178]
[1743963444075,6.42914947,1662.1,1661.9,4.21204]
[1743963444399,7.93906442,1662.1,1661.7,4.21253]
[1743963444608,6.0,1662.1,1661.9,4.21203]
[1743963444779,43.315,1662.0,1661.6,4.21257]
[1743963444980,6.0,1661.9,1661.6,4.21257]
[1743963445173,6.0,1661.9,1661.1,4.21389]
[1743963445174,0.55,1661.8,1661.0,4.21431]
[1743963445388,8.67,1661.7,1661.5,4.21293]
[1743963445573,8.67,1661.7,1661.6,4.2128]
[1743963445900,14.67,1661.7,1661.4,4.21309]
[1743963446105,14.67,1661.7,1661.4,4.21312]
[1743963446400,14.67,1661.7,1661.5,4.21289]
[1743963446562,8.42601,1661.4,1659.5,1.5098]
[1743963446764,6.02746295,1660.9,1660.4,4.21568]
[1743963446968,57.985,1660.8,1660.2,4.21624]
[1743963447210,58.41320835,1660.8,1660.4,4.21563]
[1743963447379,58.41320835,1660.8,1660.6,4.21534]
[1743963447583,58.41320835,1660.8,1660.0,1.5098]
[1743963447915,0.55,1660.7,1660.4,4.21562]
[1743963448208,6.0,1660.7,1660.4,4.2157]
[1743963448420,0.55,1660.5,1660.0,4.21682]
[1743963448568,0.55,1660.3,1659.9,4.21688]
[1743963448769,0.55,1660.1,1659.7,4.21738]
[1743963449076,3.0,1659.9,1659.6,4.21771]
[1743963449277,6.0,1659.9,1659.8,4.21722]
[1743963449516,6.0,1659.9,1659.3,4.21839]
[1743963449517,0.55,1659.8,1659.3,4.21839]
[1743963449666,0.55,1659.5,1658.7,1.5]
[1743963449867,0.55,1659.5,1657.5,4.32321]
[1743963449868,9.02746295,1658.8,1657.1,9.35903286]
[1743963450176,0.55,1657.7,1657.1,5.13485286]
[1743963450381,0.55,1657.7,1657.1,9.35889286]
[1743963450382,43.326,1657.6,1657.1,9.35889286]
[1743963450578,0.55,1657.4,1657.1,5.13485286]
[1743963451110,8.769,1657.4,1657.1,5.13485286]
[1743963451317,46.326,1657.6,1657.4,4.22344]
[1743963451318,43.326,1657.6,1657.4,4.22344]
[1743963451612,27.126183,1657.5,1656.0,0.2710142]
[1743963451769,6.02746295,1656.5,1656.0,0.2710142]
[1743963451972,52.295,1656.4,1656.0,0.2710142]
[1743963452187,53.2527463,1656.4,1656.1,4.22679]
[1743963452480,17.540369,1656.3,1656.0,0.2710142]
[1743963452682,9.57746295,1656.0,1655.9,9.02518473]
[1743963452900,3.0,1655.9,1655.4,0.0604]
[1743963453215,6.0,1655.8,1655.4,4.2889]
[1743963453366,66.972897,1655.7,1654.7,1.5]
[1743963453565,6.10968543,1655.6,1654.7,1.5]
[1743963453768,0.72053223,1656.0,1655.0,12.5184455]
[1743963453970,43.395,1657.0,1656.8,4.22481]
[1743963454210,6.0,1657.1,1655.8,4.22756]
[1743963454410,14.79534612,1657.3,1656.5,4.2257]
[1743963454583,14.79534612,1657.3,1656.2,4.22651]
[1743963454584,14.79534612,1657.3,1657.1,4.2242]
[1743963454783,6.12e-06,1657.3,1657.2,4.22399]
[1743963455423,0.51568116,1658.8,1657.2,4.22399]
[1743963455424,49.395,1658.8,1658.2,4.22144]
[1743963455601,43.395,1658.8,1658.4,4.22078]
[1743963455908,43.395,1658.8,1658.3,4.221]
[1743963456108,43.395,1658.8,1657.6,1.09197077]
[1743963456314,43.395,1658.8,1658.7,4.22017]
[1743963456484,9.69e-06,1658.9,1658.8,4.21991]
[1743963456688,4.69881237,1659.1,1659.0,4.2194]
[1743963457211,2.37e-06,1659.1,1659.0,4.2194]
[1743963457408,2.37e-06,1659.1,1659.0,5.063301]
[1743963457609,2.37e-06,1659.1,1659.0,4.2194]
[1743963458497,52.814,1659.6,1659.5,4.21813]
[1743963458698,0.31409696,1660.1,1659.7,4.21744]
[1743963458881,52.82,1660.2,1660.0,4.21665]
[1743963459075,9.412,1660.6,1660.2,4.21633]
[1743963459396,9.412,1660.6,1659.5,4.21813]
[1743963459604,9.412,1660.6,1660.1,4.2166]
[1743963459778,9.412,1660.6,1659.0,5.72337]
[1743963459981,3.55,1660.6,1659.4,4.21815]
[1743963460182,11.53721701,1660.4,1659.5,4.21803]
[1743963460508,11.53721701,1660.4,1659.5,4.21794]
[1743963460686,11.53721701,1660.4,1659.3,4.21843]
[1743963460875,11.53721701,1660.4,1659.6,4.2178]
[1743963461071,11.53721701,1660.4,1659.6,8.4356]
[1743963461275,11.53721701,1660.4,1659.5,4.21813]
[1743963461519,3.55,1660.4,1659.7,4.21745]
[1743963461822,0.5,1660.5,1659.2,0.421915]
[1743963462119,9.369,1660.4,1659.8,4.21717]
[1743963462275,9.369,1660.4,1659.9,4.2171]
[1743963462473,3.0,1660.3,1659.3,4.21849]
[1743963462675,3.0,1660.3,1659.1,4.21892]
[1743963462676,0.55,1660.2,1659.2,4.21882]
[1743963462916,0.55,1660.2,1659.6,4.21773]
[1743963463218,3.0,1660.3,1659.8,4.21719]
[1743963463421,9.347,1660.3,1660.1,4.21658]
[1743963463624,9.347,1660.3,1660.1,3.9690891]
[1743963463783,9.347,1660.3,1660.2,4.21635]
[1743963464799,9.324,1660.7,1660.5,4.21551]
[1743963465007,9.324,1660.7,1660.6,4.21516]
[1743963465321,43.402,1660.8,1660.7,4.21509]
[1743963465474,12.77010708,1661.0,1660.9,4.21458]
[1743963466091,7.08e-06,1661.0,1660.9,4.21458]
[1743963466520,9.298,1661.8,1661.7,4.21255]
[1743963466814,9.298,1661.8,1661.5,8.42575]
[1743963466981,9.298,1661.8,1661.7,4.21255]
[1743963467187,52.669,1661.9,1661.5,4.21284]
[1743963467513,52.669,1661.9,1661.3,4.2135]
[1743963467682,52.669,1661.9,1661.5,4.21306]
[1743963467887,52.669,1661.9,1661.4,4.21331]
[1743963468089,52.669,1661.9,1661.3,4.21336]
[1743963468288,52.669,1661.9,1661.3,8.42681]
[1743963468513,0.55,1661.8,1661.3,8.42681]
[1743963468826,0.55,1661.8,1661.2,4.21366]
[1743963468827,3.55,1661.8,1661.2,4.21366]
[1743963468985,3.55,1661.8,1661.3,4.21354]
[1743963469184,3.0,1661.8,1661.3,4.21354]
[1743963469400,3.0,1661.8,1661.0,4.21408]
[1743963469611,5.81889568,1661.6,1661.0,4.21408]
[1743963469883,7.76329,1661.5,1660.0,1.5032]
[1743963470101,11.81889568,1661.6,1660.0,1.5032]
[1743963470102,3.55,1661.3,1660.2,4.21613]
[1743963470285,3.55,1661.3,1660.3,4.21599]
[1743963470484,3.55,1661.3,1660.0,5.72005]
[1743963470685,9.232,1661.2,1660.3,4.2161]
[1743963470909,9.232,1661.2,1660.5,4.21559]
[1743963471224,0.55,1661.1,1660.4,7.98721701]
[1743963471428,9.232,1661.2,1660.5,4.21535]
[1743963471585,0.55,1661.1,1660.4,9.9347]
[1743963471786,0.55,1661.1,1660.5,4.21537]
[1743963471988,0.55,1660.9,1659.8,1.5032]
[1743963472189,0.55,1660.7,1659.3,1.6058]
[1743963472393,0.55,1660.7,1659.7,4.21746]
[1743963472394,0.55,1660.5,1659.7,4.21746]
[1743963472687,0.55,1660.5,1659.3,2.188264]
[1743963472688,3.55,1660.5,1659.3,1.6058]
[1743963472919,6.0,1660.4,1659.4,4.21839]
[1743963473132,9.311,1660.3,1659.9,4.21694]
[1743963473332,9.311,1660.3,1659.9,4.21697]
[1743963473492,9.311,1660.3,1660.0,4.21673]
[1743963473692,9.311,1660.3,1660.1,4.21654]
[1743963473893,9.311,1660.3,1660.0,4.21673]
[1743963474094,9.311,1660.3,1659.9,4.21691]
[1743963474324,9.311,1660.3,1660.1,4.21639]
[1743963474798,5.8244481,1660.2,1660.1,4.21639]
[1743963475199,5.8244481,1660.2,1659.9,4.21711]
[1743963475403,5.8244481,1660.2,1659.9,4.21708]
[1743963475742,43.369,1660.1,1659.4,4.21835]
[1743963475901,0.55,1660.0,1659.2,7.98721701]
[1743963476106,6.55,1660.0,1659.2,4.21888]
[1743963476335,6.55,1660.0,1659.1,4.21899]
[1743963476651,0.55,1659.8,1659.2,4.21866]
[1743963476937,15.268,1659.7,1659.2,4.21868]
[1743963477134,15.268,1659.7,1659.2,4.21887]
[1743963477320,0.55,1659.6,1659.0,0.06026552]
[1743963477508,0.55,1659.6,1658.9,4.21941]
[1743963477509,3.0,1659.6,1658.9,4.21941]
[1743963477707,3.0,1659.6,1659.0,4.21936]
[1743963477911,15.268,1659.7,1658.6,7.98721701]
[1743963478118,5.8244481,1659.4,1659.3,4.21864]
[1743963478305,5.8244481,1659.4,1659.2,4.21881]
[1743963478636,5.80848194,1659.4,1659.2,4.21876]
[1743963478838,5.80848194,1659.4,1659.0,5.86556]
[1743963479132,5.80848194,1659.4,1659.1,4.2191]
[1743963479336,5.80848194,1659.4,1659.1,4.21914]
[1743963479499,5.80848194,1659.4,1659.0,4.2193]
[1743963479702,5.80848194,1659.4,1659.0,4.21918]
[1743963479898,5.80848194,1659.4,1658.9,4.21965]
[1743963480128,5.80848194,1659.4,1658.7,1.6464]
[1743963480336,5.80848194,1659.4,1659.3,4.21864]
[1743963480638,5.80848194,1659.4,1659.2,4.21873]
[1743963480945,0.5,1659.3,1659.2,4.21873]
[1743963481128,1.94e-06,1659.4,1659.3,5.86504]
[1743963481302,7.78e-06,1659.4,1659.3,5.86504]
[1743963481502,9.201,1660.3,1660.0,4.21686]